Cogmind - Beta 13 @@@ ROGUE MODE // 2024.04.24 @ 22:47:57 Player: Olafz Result: Destroyed by 4S-92X(R) with Subdweller Machine Gun Performance ------------- Evolutions (0) 0 Regions Visited (3) 600 Robots Destroyed (29) 145 Value Destroyed (882) 882 Prototype IDs (10) 200 Alien Tech Used (0) 0 Bonus (-157) -157 TOTAL SCORE: 1670 Bonus ------- Friendly Fire -157 Cogmind --------- Core Integrity 0/250 Matter 79/300 Energy 79/100 System Corruption 0% Temperature Cool (0) Movement Rolling (117) Ox1 Location -10/Subcaves Parts ------- > --- POWER (1) -------- (None) > --- PROPULSION (2) --- Compact Wheel Subdweller Monowheel > --- UTILITY (2) ------ Disposable Heat Sink High-capacity Storage Unit > --- WEAPON (2) ------- Subdweller Laser > --- INVENTORY (20) --- Light Ion Engine Light Ion Engine Subdweller Power Source Wheel Wheel Subdweller Monowheel Makeshift Kinetic Plating Makeshift Hacking Suite Cobbler Unit Rainbow Chip Riot Gun Light Assault Rifle Subdweller Machine Gun Heavy Battle Rifle Makeshift Shrapnel Gun Grenade Launcher Flamer Enhanced Flamer Peak State ------------ > --- POWER ------------ Light Nuclear Core > --- PROPULSION ------- Subdweller Monowheel Subdweller Monowheel > --- UTILITY ---------- Disposable Heat Sink High-capacity Storage Unit > --- WEAPON ----------- Subdweller Laser Barrage Gun > --- INVENTORY -------- Light Ion Engine Light Ion Engine Subdweller Power Source Wheel Wheel Compact Wheel Makeshift Kinetic Plating Makeshift Hacking Suite Cobbler Unit Rainbow Chip Riot Gun Light Assault Rifle Subdweller Machine Gun Heavy Battle Rifle Makeshift Shrapnel Gun Grenade Launcher Flamer Enhanced Flamer [Rating: 20] Favorites ----------- Power Light Nuclear Core Engine Ion Engine Power Core Light Nuclear Core Propulsion Aluminum Leg Leg Aluminum Leg Wheel Subdweller Monowheel Utility High-capacity Storage Unit Device Disposable Heat Sink Storage High-capacity Storage Unit Protection Scrap Shield Weapon Grenade Launcher Energy Gun Particle Gun Ballistic Gun Assault Rifle Launcher Grenade Launcher Build | -11 -10 -10 -10 ------- Run | Yrd Mat Min Sub Slots Evolved . | . . . . Power . | . . . . Propulsion . | . . . . Utility . | . . . . Weapon . | . . . . Parts Attached 28 | . 9 5 14 Power 3 | . 2 1 . Engine 1 | . 1 . . Core 2 | . 1 1 . Reactor . | . . . . Propulsion 10 | . 2 2 6 Treads . | . . . . Leg 5 | . 2 2 1 Wheel 5 | . . . 5 Hover . | . . . . Flight . | . . . . Utility 7 | . 4 . 3 Device 3 | . 2 . 1 Storage 3 | . 2 . 1 Processor . | . . . . Hackware . | . . . . Protection 1 | . . . 1 Artifact . | . . . . Weapon 8 | . 1 2 5 Energy Gun 3 | . 1 . 2 Energy Cannon . | . . . . Ballistic Gun 3 | . . 1 2 Ballistic Cannon . | . . . . Launcher 2 | . . 1 1 Special Weapon . | . . . . Impact Weapon . | . . . . Slashing Weapon . | . . . . Piercing Weapon . | . . . . Special Melee Weapon . | . . . . Unidentified Prototypes . | . . . . Parts Lost 6 | . 1 2 3 Power 2 | . 1 . 1 Propulsion . | . . . . Utility 2 | . . 1 1 Weapon 2 | . . 1 1 Highest Loss Streak 2 | . 1 2 2 To Critical Strikes . | . . . . Average Slot Usage (%) 94 | . 95 92 95 Engine 6 | . 8 13 . Core 6 | . 3 . 13 Leg 18 | . 28 28 5 Wheel 8 | . . . 21 Device 9 | . 11 6 10 Storage 13 | . 14 14 11 Energy Gun 9 | . 14 6 9 Ballistic Gun 12 | . 14 8 13 Launcher 5 | . . 13 4 Naked Turns . | . . . . Heaviest Build 54 | 12 51 52 54 Greatest Support 40 | 20 20 20 40 Greatest Overweight (x) 16 | . 2 2 16 Average Overweight (x) 1 | . . 2 1 Largest Inventory Capacity 20 | . 20 20 20 Average Capacity 16 | . 10 20 17 Most Carried 20 | . 10 12 20 Average Carried 10 | . 9 10 11 Final Capacity 20 | 8 20 20 20 Final Carried 19 | 6 10 12 19 Class Distribution -------------------- 68% | Mutant 31% | Scavenger-Mutant Dominant Class ---------------- Mutant | -10/Materials Mutant | -10/Mines Scavenger-Mutant | -10/Subcaves Resources | -11 -10 -10 -10 ----------- Run | Yrd Mat Min Sub Matter Collected 667 | 200 205 57 205 Remotely . | . . . . Salvage Created 919 | . 503 255 161 Parts 59 | . 29 22 8 Haulers Intercepted 1 | . 1 . . Recyclers Shooed 1 | . . 1 . Parts Field Recycled . | . . . . Retrieved Matter . | . . . . Parts Self-Destructed 5 | . . . 5 Prevented . | . . . . Kills | -11 -10 -10 -10 ------- Run | Yrd Mat Min Sub Combat Hostiles Destroyed 23 | . 8 11 4 Guns 11 | . 8 1 2 AOE 12 | . . 10 2 Classes Destroyed 10 | . 5 2 3 Worker 3 | . 2 1 . Hauler 1 | . 1 . . Recycler 1 | . 1 . . Watcher 1 | . 1 . . Swarmer 3 | . . 3 . Grunt 16 | . 8 6 2 Sentry 2 | . . 2 . Artisan 1 | . . . 1 Cobbler 1 | . . . 1 Subdweller 2 | . . . 2 Best Kill Streak 5 | . 4 5 2 Combat Bots Only 5 | . 2 5 2 Max Kills in Single Turn 2 | . 1 2 1 Gunslinging . | . . . . Exploded 2 | . . 2 1 Melee . | . . . . Uniques/NPCs Destroyed . | . . . . Combat | -11 -10 -10 -10 -------- Run | Yrd Mat Min Sub Hostile Shots Fired 127 | . 53 38 36 Missed 41 | . 19 13 9 Damage Taken 1543 | . 444 349 750 Core 270 | . 85 51 134 Absorbed by Shields . | . . . . Core Remaining (%) 100 | 100 . . . Volleys Fired 125 | . 58 27 40 Largest 2 | . 2 2 2 Hottest 88 | . 85 65 88 Shots Fired 204 | . 116 32 56 Gun 184 | . 116 18 50 Cannon . | . . . . Launcher 20 | . . 14 6 Special . | . . . . Kinetic 102 | . 58 13 31 Thermal 57 | . 38 5 14 Explosive 20 | . . 14 6 Electromagnetic 25 | . 20 . 5 Robot Hit Streak 25 | . 6 17 25 Robot Miss Streak 6 | . 6 2 3 Penetration Max . | . . . . Secondary Targets . | . . . . Shots Hit Robots 124 | . 63 24 37 Core Hits 65 | . 26 25 14 Critical Kills 2 | . . . 2 Critical Parts Destroyed 1 | . . . 1 Critical Strikes 6 | . 2 . 4 Burn 1 | . 1 . . Destroy 4 | . . . 4 Corrupt 1 | . 1 . . Melee Attacks . | . . . . Impact . | . . . . Slashing . | . . . . Piercing . | . . . . Sneak Attacks . | . . . . Combat Hostiles . | . . . . Follow-up Attacks . | . . . . Damage Inflicted 2865 | . 887 948 1030 Guns 1374 | . 887 90 397 Cannons . | . . . . Explosions 1491 | . . 858 633 Melee . | . . . . Ramming . | . . . . Kinetic 702 | . 445 45 212 Thermal 522 | . 292 45 185 Explosive 1491 | . . 858 633 Electromagnetic 150 | . 150 . . Impact . | . . . . Slashing . | . . . . Piercing . | . . . . Highest Corruption . | . . . . Average Corruption . | . . . . Corruption Purged . | . . . . Corruption Blocked . | . . . . Overload Shots . | . . . . Overflow Damage 5 | . . 5 . Projectiles . | . . . . Explosions 5 | . . 5 . Melee . | . . . . Knockbacks . | . . . . Impact . | . . . . Kinetic . | . . . . Secondary . | . . . . Self-Inflicted Damage 114 | . . . 114 Shots 3 | . . . 3 Rammed . | . . . . Targets Rammed 1 | . 1 . . Kicked 1 | . 1 . . Crushed . | . . . . Highest Temperature 336 | . 336 141 12 Average Temperature 71 | . 79 41 9 Received Heat Transfer 534 | . 252 174 108 Siege Activations . | . . . . Robots Corrupted . | . . . . Combat Hostiles . | . . . . Parts Fried 1 | . 1 . . Impact Corruptions . | . . . . Robots Melted . | . . . . Combat Hostiles . | . . . . Parts Melted 1 | . 1 . . Heat Transferred 1113 | . 777 111 225 Parts Sabotaged . | . . . . Parts Stolen . | . . . . Parts Stripped . | . . . . Power Chain Reactions . | . . . . Alert | -11 -10 -10 -10 ------- Run | Yrd Mat Min Sub Peak Influence 269 | . 211 269 . Initial . | . . . . Average 77 | . 80 74 . Maximum Alert Level 1 | . 1 1 . Low Security (%) 92 | . 91 93 . Level 1 7 | . 8 6 . Level 2 . | . . . . Level 3 . | . . . . Level 4 . | . . . . Level 5 . | . . . . High Security . | . . . . Max Security . | . . . . Squads Dispatched 2 | . 2 . . Investigation . | . . . . Extermination . | . . . . Reinforcement 2 | . 2 . . Assault . | . . . . Garrison . | . . . . Intercept . | . . . . Searches Triggered . | . . . . Construction Impeded . | . . . . Haulers Reinforced . | . . . . Active Scanning Responses . | . . . . Cargo Convoy Interrupts . | . . . . Stealth | -11 -10 -10 -10 --------- Run | Yrd Mat Min Sub Distress Signals 2 | . 2 . . Communications Jammed . | . . . . Distress Signals . | . . . . Times Spotted 42 | . 19 11 12 Peak Tracking Total 6 | . 3 3 6 Tactical Retreats 2 | . 1 1 . Traps | -11 -10 -10 -10 ------- Run | Yrd Mat Min Sub Traps Triggered 1 | . . . 1 Indirectly . | . . . . Trap Hack Attempts . | . . . . Triggered . | . . . . Disarmed . | . . . . Reprogrammed . | . . . . Reused . | . . . . Traps Extracted . | . . . . Installed . | . . . . Triggered . | . . . . Machines | -11 -10 -10 -10 ---------- Run | Yrd Mat Min Sub Machines Disabled 5 | . 2 2 1 Max in Single Turn 1 | . 1 1 1 Machines Repaired . | . . . . Machines Dismantled . | . . . . Machines Sabotaged . | . . . . Overloaded Fab Kills . | . . . . Hacking | -11 -10 -10 -10 --------- Run | Yrd Mat Min Sub Machines Accessed 2 | . 1 . 1 Terminals 1 | . 1 . . Fabricators . | . . . . Repair Stations . | . . . . Recycling Units . | . . . . Scanalyzers . | . . . . Garrison Access . | . . . . Total Hacks 3 | . 2 . 1 Successful 2 | . 1 . 1 Failed 1 | . 1 . . Catastrophic 1 | . 1 . . Database Lockouts . | . . . . Manual 2 | . 2 . . Terminals 2 | . 2 . . Fabricators . | . . . . Repair Stations . | . . . . Recycling Units . | . . . . Scanalyzers . | . . . . Garrison Access . | . . . . Terminal Hacks 2 | . 1 . 1 Branch Access Points 1 | . 1 . . Derelict Proto ID Bank 1 | . . . 1 Fabricator Hacks . | . . . . Repair Station Hacks . | . . . . Recycling Unit Hacks . | . . . . Scanalyzer . | . . . . Garrison Access Hacks . | . . . . Unauthorized Hacks . | . . . . Terminals . | . . . . Fabricators . | . . . . Repair Stations . | . . . . Recycling Units . | . . . . Scanalyzers . | . . . . Garrison Access . | . . . . Data Cores Recovered . | . . . . Used . | . . . . Hacking Detections 1 | . 1 . . Full Trace Events 1 | . 1 . . Feedback Events . | . . . . Feedback Blocked . | . . . . Robot Schematics Acquired . | . . . . Robots Built . | . . . . Authchips . | . . . . Time . | . . . . Total Robot Build Rating . | . . . . Part Schematics Acquired . | . . . . Parts Built . | . . . . Authchips . | . . . . Time . | . . . . Total Part Build Rating . | . . . . Parts Repaired . | . . . . Time . | . . . . Parts Recycled . | . . . . Recycled Matter . | . . . . Retrieved Matter . | . . . . Retrieved Components . | . . . . Parts Scanalyzed . | . . . . Part Schematics Acquired . | . . . . Parts Damaged . | . . . . Bothacking | -11 -10 -10 -10 ------------ Run | Yrd Mat Min Sub Used RIF Installer . | . . . . Robots Hacked . | . . . . Non-combat . | . . . . Combat . | . . . . Robot Hacks Applied . | . . . . Relay Couplers Released . | . . . . Fabnet Peak Effective % . | . . . . Robots Rewired . | . . . . Allies Hacked . | . . . . Hacks Repelled . | . . . . Allies | -11 -10 -10 -10 -------- Run | Yrd Mat Min Sub Total Allies . | . . . . Largest Group . | . . . . Highest-Rated Group . | . . . . Highest-Rated Ally . | . . . . Total Orders . | . . . . Ally Attacks . | . . . . Total Damage . | . . . . Kills . | . . . . Allies Corrupted . | . . . . Allies Melted . | . . . . Intel | -11 -10 -10 -10 ------- Run | Yrd Mat Min Sub Robot Analysis Total . | . . . . Derelict Logs Recovered 4 | . . 3 1 Drone Launches . | . . . . Drone Recoveries . | . . . . Exploration | -11 -10 -10 -10 ------------- Run | Yrd Mat Min Sub Turns Passed 2731 | . 841 771 1119 Spaces Moved 1400 | 1 387 271 741 Core 2 | . . . 2 Treads . | . . . . Legs 747 | 1 387 271 88 Wheels 651 | . . . 651 Hover . | . . . . Flight . | . . . . Fastest Speed 117 | 120 120 260 117 Average Speed 166 | 120 164 260 132 Slowest Speed 850 | 120 260 260 850 Overloaded Moves . | . . . . Propulsion Burnouts . | . . . . Robots Hopped . | . . . . Cave-ins Triggered . | . . . . Exploration Rate (%) 49 | 2 82 71 41 Regions Visited 3 Branch Regions 2 Pre-discovered Areas 2 | . . 1 1 Known Exits Taken 1 | . 1 . . Unknown Exits Taken 2 | 1 . 1 . Scrap Searched 3 | . . . 3 Spaces Dug . | . . . . Terrain Destroyed 107 | . . 85 22 Melee . | . . . . Projectile . | . . . . AOE 107 | . . 85 22 Terrain Rammed . | . . . . Walls Destroyed . | . . . . Machines Disabled . | . . . . Actions | -11 -10 -10 -10 --------- Run | Yrd Mat Min Sub Total 1615 | . 480 307 828 Wait 23 | . 13 5 5 Move 1397 | . 386 270 741 Hop . | . . . . Pick Up 19 | . 5 . 14 Fast Attach 9 | . 4 . 5 Attach 5 | . 1 1 3 Detach 6 | . 1 . 5 Swap 14 | . 4 4 6 Drop 16 | . 7 . 9 Fire 125 | . 58 27 40 Melee . | . . . . Ram . | . . . . Kick 1 | . 1 . . Crush . | . . . . Escape Stasis . | . . . . Rewire . | . . . . Trap . | . . . . Miscellaneous . | . . . . Route ------- -11/Scrapyard -10/Materials (discovered 4 exits: [*Mat x2] / *Min x2) -10/Mines (discovered 2 exits: [*Mat] / *Sub) -10/Subcaves History --------- Turn | Location | Event 1 | -11/Scrapyard | Discovered new exit (range 0) 1 | -11/Scrapyard | Entered Materials 57 | -10/Materials | Identified exit to Mines 316 | -10/Materials | Build established: Mutant 410 | -10/Materials | Discovered new exit (range 5) 769 | -10/Materials | Discovered new exit (range 15) 842 | -10/Materials | Entered Mines 1048 | -10/Mines | Learned 2 Materials zone layouts 1206 | -10/Mines | Core integrity fell below 50% 1302 | -10/Mines | Discovered new exit (range 9) 1427 | -10/Mines | Found a hidden stash of uninstalled traps 1471 | -10/Mines | Learned location of Storage (-8) 1492 | -10/Mines | Discovered new exit (range 7) 1513 | -10/Mines | Learned Materials security intel 1613 | -10/Mines | Entered Subcaves 1658 | -10/Subcaves | Learned 2 Materials zone layouts 1754 | -10/Subcaves | Ambushed by swarm of Subdwellers 1756 | -10/Subcaves | Ambushed by Subdwellers from Twisted Machinery 1762 | -10/Subcaves | Core integrity fell below 20% 2036 | -10/Subcaves | Visited 4L-MR0's lab 2053 | -10/Subcaves | Found Rainbow Chip 2112 | -10/Subcaves | Learned location of Zion (-7) 2112 | -10/Subcaves | Met a Zionite searching for "candidates" 2143 | -10/Subcaves | Build established: Scavenger-Mutant 2420 | -10/Subcaves | A swath of the cavern ceiling suddenly collapsed 2658 | -10/Subcaves | Shifting Twisted Machinery released Sub. Optics 2732 | -10/Subcaves | Destroyed by 4S-92X(R) with Subdweller Machine Gun Last Messages --------------- An expanding cloud of shrapnel blasts out in all directions. Sub. Monowheel shoots sparks and powers down. Dropped Broken Sub. Monowheel. A swath of the cavern ceiling suddenly collapses. Sub. Monowheel shoots sparks and powers down. Acquired Mak. Shrapnel Gun. Acquired Mak. Kinetic Plating. Subatomizers dissect the Wheel. Acquired Hvy. Battle Rifle. Sub. Optics falls loose from the Twisted Machinery. JD-F94(O) suffers critical hit (Destroy). JD-F94(O) cries out in pain. JD-F94(O) destroyed. Acquired Enh. Flamer. Acquired Cobbler Unit. Lgt. Nuclear Core destroyed. RT-OKN(R) destroyed. 4S-92X(R) suffers critical hit (Destroy). Destroyed Sub. Monowheel. Barrage Gun destroyed. Map ----- +----------------------------------------------------+ | ???????????# ##?? ## !""""#?????????????? | | ???????????# #??## ""#?????????????? | | ???????????# ##??# """#?????????????? | | ???????????## #??## ""#?????????????? | | ???????????# ##?# ####?????????????? | | ???????????# #?#### #????????????????? | | ???????????# ##????# ##???????????????? | | ???????????## ##????# ##??????????????? | | ???????????# ##???# #??????????????? | | ??????????## ##?## |## #??????????????? | | ??????????# ### ### #??????????????? | | ??????????# #?## #??????????????? | | ??????????#### ###??# #??????????????? | | ?????????????#### # #???## #??????????????? | | ????????????????# ### ##??# #??????????????? | | ????????????????##### ##?# #??????????????? | | ??????????????????## #### #??????????????? | | ?????????????????## # ## #??????????????? | | ?????????????????# ##?????????????? | | ???????????????????# #?????????????? | | ???????????????????## # ######?????????????? | | ????????????????????## #####?????????????????? | | ??????????????????#### ##????????????????? | | ?????????????????## % ##???????????????? | | ?????????????????# ##??????????????? | | ?????????????# ## @ #??????????????? | | ?????????????# #?## #??????????????? | | ?????????????## ???#! ##??????????????? | | ??????????????## ???#%! #???????????????? | | ???????????????## ???=/[ #???????????????? | | ????????????????# ???? #??????????????? | | ????????????????# ??? #??????????????? | | ???????????????? ??? ###??????????????? | | ??????????????? ??? R #????????????????? | | ??????????????# ###??? ##????????????????? | | ????????????????????? #?????????????????? | | ????????????????????? #?????????????????? | | ???????????????????? #?????????????????? | | ???????????????????? ##?????????????????? | | ??????????????????? ???????????????????? | | ??????????????????? ???????????????????? | | ????????????????????? ???????????????????? | | ??????????????????????? ???????????????????? | | ?????????????????????????????????????????????? | | ?????????????????????????????????????????????? | | ?????????????????????????????????????????????? | | ?????????????????????????????????????????????? | | ?????????????????????????????????????????????? | | ?????????????????????????????????????????????? | | ?????????????????????????????????????????????? | +----------------------------------------------------+ Best States ------------- Heat Dissipation 25 Coolant Potential 50 Energy Generation 14 Energy Capacity 250 Matter Stores 300 Matter Capacity 300 Sight Range 16 Terrain Scan Range 14 Terrain Scan Density 10 Armor Coverage 800 Evasion (%) 55 Item Schematics ----------------- None Robot Schematics ------------------ None Fabricated ------------ Nothing Alien Tech Used ----------------- None Achievements -------------- None Challenges ------------ None Game ------ Seed DerelictLaserDrive Manual? 0 Play Time 00:26:03 Cumulative 84.0 hours Start 2024.04.24 @ 22:08:28 End 2024.04.24 @ 22:47:57 Sessions 1 Manual Loads 0 Difficulty Rogue Special Mode None Game No. 171 Rogue 169 Adventurer 2 Explorer 0 Win Type - Total 3 Types 2/0/0/1/0/0/0/0/0 Lore% 49 Gallery% 51 Achievement% 39 Wizard Run 0 Options --------- Layout 0 ASCII 0 Keyboard 1 Movement Numpad Keybinds 1 Fullscreen 2 Font 18/SmallcapsGlow Map View 76x50 Zoom Use 0% Tactical HUD 1 Map Filters NONE Filters NONE Steam 1 RUN: bcc8942c-49f3-4260-aa3e-aef7d1749e45